fUST/lending_fUST_20251119
["ID","MTS","AMOUNT","RATE_DAILY","PERIOD"]
[394418851,1763553007812,122.52481567,0.00014577,2]
[394418852,1763553010400,2734.44032093,0.00014577,2]
[394418853,1763553013067,603.12425776,0.00014577,2]
[394418854,1763553014050,527.65985962,0.00014839,2]
[394418855,1763553015201,1357.02957995,0.00014577,2]
[394418856,1763553017881,2412.49703103,0.00014577,2]
[394418857,1763553019952,425.73477018,0.00014541,2]
[394418858,1763553022150,1701.23614164,0.00014541,2]
[394418859,1763553028952,5000.0,0.00014689,2]
[394418915,1763553037630,-1940.29941832,0.00014849,2]
[394418918,1763553037642,-2190.60058168,0.00014849,2]
[394418920,1763553037651,-158.30819872,0.00014854,2]
[394418922,1763553037660,-1200.0,0.00014858,2]
[394418924,1763553037669,-666.04270738,0.00014867,2]
[394418926,1763553037679,-1198.87687328,0.00014867,2]
[394418928,1763553037688,-2131.3366636,0.00014867,2]
[394418930,1763553037697,-3330.21353688,0.00014867,2]
[394418932,1763553037706,-300.0,0.00014888,2]
[394418934,1763553037717,-1408.28219263,0.00014889,2]
[394418936,1763553037726,-713.0,0.00015,2]
[394418938,1763553037735,-689.55009705,0.00015077,2]
[394418940,1763553037746,-1200.0,0.00015098,2]
[394418942,1763553037755,-185.42548979,0.00015098,2]
[394418944,1763553037764,-500.0,0.00015108,2]
[394418946,1763553037773,-197.13657293,0.00015197,2]
[394418948,1763553037782,-500.0,0.00015197,2]
[394418950,1763553037791,-188.11773349,0.00015197,2]
[394418951,1763553037800,-500.0,0.00015197,2]
[394418953,1763553037809,-500.0,0.00015197,2]
[394418955,1763553037818,-500.0,0.00015197,2]
[394418958,1763553037832,-500.0,0.00015197,2]
[394418960,1763553037841,-500.0,0.00015197,2]
[394418962,1763553037851,-254.32211982,0.00015197,2]
[394418964,1763553037860,-500.0,0.00015197,2]
[394418966,1763553037871,-500.0,0.00015197,2]
[394418967,1763553037880,-500.0,0.00015197,2]
[394418969,1763553037889,-500.0,0.00015197,2]
[394418971,1763553037899,-500.0,0.00015197,2]
[394418973,1763553037908,-500.0,0.00015197,2]
[394418975,1763553037918,-500.0,0.00015197,2]
[394418977,1763553037926,-500.0,0.00015197,2]
[394418979,1763553037935,-500.0,0.00015197,2]
[394418981,1763553037944,-500.0,0.00015197,2]
[394418983,1763553037953,-500.0,0.00015197,2]
[394418985,1763553037962,-500.0,0.00015197,2]
[394418987,1763553037971,-500.0,0.00015197,2]
[394418989,1763553037981,-551.66201584,0.00015197,2]
[394418991,1763553037990,-500.0,0.00015197,2]
[394418993,1763553037999,-500.0,0.00015197,2]
[394418995,1763553038008,-500.0,0.00015197,2]
[394418997,1763553038018,-500.0,0.00015197,2]
[394418999,1763553038027,-500.0,0.00015197,2]
[394419001,1763553038036,-500.0,0.00015197,2]
[394419003,1763553038045,-500.0,0.00015197,2]
[394419005,1763553038055,-249.90105822,0.00015197,2]
[394419007,1763553038064,-500.0,0.00015197,2]
[394419009,1763553038073,-500.0,0.00015197,2]
[394419012,1763553038083,-500.0,0.00015197,2]
[394419014,1763553038093,-500.0,0.00015197,2]
[394419015,1763553038103,-500.0,0.00015197,2]
[394419018,1763553038113,-500.0,0.00015197,2]
[394419020,1763553038122,-500.0,0.00015197,2]
[394419021,1763553038131,-500.0,0.00015197,2]
[394419023,1763553038140,-500.0,0.00015197,2]
[394419025,1763553038150,-500.0,0.00015197,2]
[394419028,1763553038160,-500.0,0.00015197,2]
[394419030,1763553038170,-500.0,0.00015197,2]
[394419031,1763553038179,-500.0,0.00015197,2]
[394419034,1763553038189,-500.0,0.00015197,2]
[394419036,1763553038198,-500.0,0.00015197,2]
[394419038,1763553038207,-500.0,0.00015197,2]
[394419040,1763553038216,-500.0,0.00015197,2]
[394419042,1763553038225,-196.82763481,0.00015197,2]
[394419043,1763553038236,-500.0,0.00015197,2]
[394419045,1763553038246,-500.0,0.00015197,2]
[394419048,1763553038256,-500.0,0.00015197,2]
[394419050,1763553038265,-500.0,0.00015197,2]
[394419052,1763553038275,-500.0,0.00015197,2]
[394419054,1763553038284,-500.0,0.00015197,2]
[394419055,1763553038293,-500.0,0.00015197,2]
[394419058,1763553038302,-500.0,0.00015197,2]
[394419060,1763553038312,-500.0,0.00015197,2]
[394419062,1763553038321,-500.0,0.00015197,2]
[394419064,1763553038331,-500.0,0.00015197,2]
[394419066,1763553038341,-500.0,0.00015197,2]
[394419068,1763553038350,-500.0,0.00015197,2]
[394419070,1763553038361,-50000.0,0.00015199,2]
[394419072,1763553038370,-155.255002,0.00015199,2]
[394419074,1763553038380,-151.0,0.000152,2]
[394419076,1763553038390,-151.0,0.000152,2]
[394419078,1763553038399,-151.0,0.000152,2]
[394419080,1763553038409,-151.0,0.000152,2]
[394419082,1763553038418,-151.0,0.000152,2]
[394419084,1763553038427,-151.0,0.000152,2]
[394419086,1763553038437,-151.0,0.000152,2]
[394419088,1763553038446,-151.0,0.000152,2]
[394419090,1763553038455,-151.0,0.000152,2]
[394419092,1763553038464,-151.0,0.000152,2]
[394419094,1763553038474,-151.0,0.000152,2]
[394419095,1763553038483,-151.0,0.000152,2]
[394419097,1763553038493,-151.0,0.000152,2]
[394419100,1763553038503,-151.0,0.000152,2]
[394419102,1763553038513,-151.0,0.00015207,2]
[394419104,1763553038523,-495.42104687,0.00015207,2]
[394419106,1763553038532,-155.39006501,0.00015207,2]
[394419108,1763553038542,-157.8498372,0.00015207,2]
[394419110,1763553038551,-151.0,0.00015207,2]
[394419112,1763553038560,-500.0,0.00015207,2]
[394419114,1763553038570,-1957.0,0.00015207,2]
[394419115,1763553038579,-500.0,0.00015207,2]
[394419117,1763553038589,-500.0,0.00015209,2]
[394419118,1763553038610,-500.0,0.00015209,2]
[394419119,1763553038620,-524.15073761,0.00015209,2]
[394419120,1763553038629,-261.865298,0.00015209,2]
[394419121,1763553038639,-261.865298,0.00015209,2]
[394419122,1763553038649,-261.865298,0.00015209,2]
[394419123,1763553038658,-261.865298,0.00015209,2]
[394419124,1763553038668,-500.0,0.00015209,2]
[394419125,1763553038678,-532.66965828,0.00015209,2]
[394419126,1763553038687,-500.0,0.00015209,2]
[394419127,1763553038696,-500.0,0.00015209,2]
[394419128,1763553038707,-151.0,0.00015209,2]
[394419129,1763553038717,-500.0,0.00015209,2]
[394419130,1763553038726,-1000.0,0.00015209,2]
[394419131,1763553038736,-1000.0,0.00015209,2]
[394419132,1763553038747,-1000.0,0.00015209,2]
[394419133,1763553038757,-1000.0,0.00015209,2]
[394419134,1763553038768,-1000.0,0.00015209,2]
[394419135,1763553038778,-1000.0,0.00015209,2]
[394419136,1763553038788,-1000.0,0.00015209,2]
[394419137,1763553038798,-1008.43444966,0.00015209,2]
[394419138,1763553038809,-500.0,0.0001521,2]
[394419139,1763553038818,-200.0,0.0001521,2]
[394419140,1763553038833,-151.000082,0.0001521,2]
[394419141,1763553038843,-544382.87316545,0.00015211,2]
[394419146,1763553040882,-2215.58800623,0.00015211,2]
[394419176,1763553061691,150.85,5e-05,2]
[394419177,1763553061979,150.85,6.4e-05,2]
[394419178,1763553062264,150.85,7.8e-05,2]
[394419179,1763553062634,150.85,9.2e-05,2]
[394419180,1763553062941,150.85,0.000106,2]
[394419181,1763553063218,150.85,0.00012,2]
[394419182,1763553102513,1769.26160559,0.00014689,2]
[394419183,1763553114783,505.87431828,0.00014541,2]
[394419184,1763553116996,2023.49727312,0.00014541,2]
[394419185,1763553119831,4548.31599565,0.00014541,2]
[394419186,1763553122455,165.38198867,0.00014577,2]
[394419187,1763553124837,82.57881869,0.00014577,2]
[394419188,1763553124863,578.94913598,0.00014577,2]
[394419189,1763553127322,1488.43789801,0.00014577,2]
[394419190,1763553129613,295.21650242,0.00014577,2]
[394419191,1763553131762,2646.11181869,0.00014577,2]
[394419192,1763553134287,4134.5497167,0.00014577,2]
[394419193,1763553136836,856.7449282,0.00014577,2]
[394419194,1763553136864,5097.00666385,0.00014577,2]
[394419195,1763553139478,531.38970436,0.00014577,2]
[394419197,1763553141740,388.60216498,0.00014541,2]
[394419198,1763553144115,223.5147169,0.0001466,2]
[394419199,1763553146184,894.05886759,0.0001466,2]
[394419200,1763553147483,2865.43788232,0.00014,2]
[394419201,1763553147505,10000.01,0.00014,2]
[394419202,1763553147529,2205.55211768,0.00014,2]
[394419203,1763553156548,10000.01,0.00014521,2]
[394419204,1763553156569,8185.3432716,0.00014521,2]
[394419205,1763553157669,413.22048502,0.00014541,2]
[394419206,1763553160197,1401.44624338,0.00014541,2]
[394419208,1763553189715,1486.31,0.00015186,3]
[394419209,1763553200361,743.16,0.00015186,3]
[394419210,1763553210988,371.58,0.00015186,3]
[394419212,1763553221631,185.79,0.00015186,3]
[394419213,1763553232216,557.38,0.00015186,3]
[394419214,1763553245330,-477.57876359,0.00014251,2]
[394419215,1763553247617,-480.89691765,0.00014108,2]
[394419216,1763553249164,-192.09411889,0.00014108,2]
[394419217,1763553250678,-392.70515437,0.00014108,2]
[394419218,1763553252785,-470.13462775,0.00014008,2]
[394419219,1763553252806,-433.04447354,0.00014108,2]
[394419220,1763553254366,-6.30137385,0.00014108,2]
[394419221,1763553254388,-473.24504723,0.00014251,2]
[394419222,1763553262452,-231.26706152,0.00014251,2]
[394419223,1763553269035,-307.09728476,0.00014251,2]
[394419224,1763553376547,-164.52089245,0.00013967,2]
[394419225,1763553377937,-158.43027351,0.00013967,2]
[394419226,1763553377961,-88.66251976,0.00014108,2]
[394419227,1763553391115,-234.2886462,0.00013967,2]
[394419228,1763553391136,-65.7113538,0.00014108,2]
[394419229,1763553426417,2011.63245208,0.00013927,2]
[394419230,1763553428978,3576.23547037,0.00013927,2]
[394419231,1763553431114,953.07101542,0.00013867,2]
[394419232,1763553432973,168.5772924,0.00013827,2]
[394419233,1763553434059,3290.49376973,0.00013927,2]
[394419234,1763553436569,-229.46608671,0.00013927,2]
[394419235,1763553438010,-251.43569671,0.00013814,2]
[394419236,1763553438032,-93.84870999,0.00013927,2]
[394419237,1763553438659,-1974.05935602,0.00013927,2]
[394419238,1763553439042,3715.26538083,0.00013814,2]
[394419239,1763553440134,-168.5772924,0.00013967,2]
[394419240,1763553440156,-54.9927076,0.00014108,2]
[394419241,1763553481097,-155.14203475,0.00013898,2]
[394419242,1763553481119,-155.14203475,0.00014038,2]
[394419243,1763553481142,-100.64014279,0.0001418,2]
[394419244,1763553483590,-155.14203475,0.00013759,2]
[394419245,1763553483616,-54.50189196,0.0001418,2]
[394419246,1763553483638,-12.14107699,0.00014489,2]
[394419247,1763553485621,-413.06789508,0.00014489,2]
[394419248,1763553512675,-282.72180402,0.00014059,2]
[394419249,1763553516814,-175.78239429,0.00014059,2]
[394419251,1763553601150,-253.40045754,0.00013764,2]
[394419252,1763553604808,-736.17,0.00013764,2]
[394419253,1763553613855,-419.10278784,0.00013764,2]
[394419254,1763553623921,-311.45121328,0.00013764,2]
[394419255,1763553629592,-377.03683551,0.00013764,2]
[394419256,1763553688083,233.07192156,0.0001349,2]
[394419257,1763553690999,-171.83081564,0.00013626,2]
[394419258,1763553769235,732.859324,0.0003234,120]
[394419270,1763553781051,-61.24110592,0.00013626,2]
[394419271,1763553781080,-165.11096082,0.00013664,2]
[394419272,1763553781111,-233.07192156,0.00013764,2]
[394419273,1763553781147,-123.72292898,0.00013912,2]
[394419274,1763553794383,928.94,0.00012329,2]
[394419275,1763553804780,774.12,0.00012329,2]
[394419276,1763553815195,645.1,0.00012329,2]
[394419277,1763553825626,537.58,0.00012329,2]
[394419278,1763553836217,447.99,0.00012329,2]
[394419279,1763553846614,373.32,0.00012329,2]
[394419280,1763553857259,311.1,0.00012329,2]
[394419281,1763553867724,259.25,0.00012329,2]
[394419282,1763553878324,216.04,0.00012329,2]
[394419283,1763553888671,180.04,0.00012329,2]
[394419284,1763553899054,150.03,0.00012329,2]
[394419285,1763553901424,342.2799312,0.000134,2]
[394419286,1763553909478,750.17,0.00012329,2]
[394419287,1763553976100,-391.01097743,0.00013562,2]
[394419288,1763553976126,-348.47354305,0.00013699,2]
[394419289,1763553981548,-387.51183085,0.00013699,2]
[394419290,1763553983839,-252.15,0.00013562,2]
[394419291,1763554036082,-11.8646261,0.00013562,2]
[394419292,1763554036106,-257.97386137,0.00013599,2]
[394419293,1763554036134,-246.6493585,0.00013699,2]
[394419294,1763554037840,567.46190812,0.00015556,7]
[394419295,1763554038754,-17.3652676,0.00013699,2]
[394419296,1763554038787,-135.08476162,0.00013805,2]
[394419297,1763554156053,-181.88495492,0.00013705,2]
[394419298,1763554158812,-439.72,0.00013705,2]
[394419299,1763554163103,-311.67278258,0.00013705,2]
[394419300,1763554165982,-1810.24655718,0.00013705,2]
[394419301,1763554173354,-854.8180224,0.00013568,2]
[394419302,1763554174873,-300.0,0.00013568,2]
[394419303,1763554177346,3033.22244336,0.00013432,2]
[394419304,1763554180536,-300.0,0.00013568,2]
[394419305,1763554182143,-498.21718645,0.00013568,2]
[394419306,1763554184105,-257.44676495,0.00013568,2]
[394419307,1763554189114,-170.54440839,0.00013568,2]
[394419308,1763554191879,-407.44498926,0.00013568,2]
[394419309,1763554197637,-244.75107191,0.00013568,2]
[394419310,1763554197665,-71.52696255,0.00013705,2]
[394419311,1763554199641,-184.130986,0.00013432,2]
[394419312,1763554201710,-60.62008591,0.00013432,2]
[394419313,1763554201730,-465.29450532,0.00013705,2]
[394419314,1763554204256,-200.68193262,0.00013402,2]
[394419315,1763554206278,-160.10204297,0.00013402,2]
[394419316,1763554213448,-245.51235665,0.00013402,2]
[394419317,1763554221247,-164.81831305,0.00013268,2]
[394419318,1763554229011,-222.57518053,0.00013135,2]
[394419320,1763554231576,-300.0,0.00013135,2]
[394419354,1763554237548,-165.15505969,0.00013135,2]
[394419368,1763554237790,-734.27899319,0.00013135,2]
[394419375,1763554237845,-302.0,0.00013135,2]
[394419377,1763554237858,-154.67101734,0.00013135,2]
[394419379,1763554237867,-8592.06136329,0.00013268,2]
[394419382,1763554237879,-15428.12191502,0.00013268,2]
[394419384,1763554237888,-24185.00159136,0.00013402,2]
[394419386,1763554237897,-686.15441831,0.00013705,2]
[394419388,1763554237907,-14.91523838,0.00013805,2]
[394419391,1763554237917,-300.0,0.00013873,2]
[394419393,1763554237926,-300.0,0.00013873,2]
[394419395,1763554237936,-300.0,0.00013873,2]
[394419397,1763554237946,-1200.0,0.00013873,2]
[394419399,1763554237955,-300.0,0.00013873,2]
[394419401,1763554237964,-62413.4755174,0.00013874,2]
[394419403,1763554237973,-197.13657293,0.00013999,2]
[394419405,1763554237983,-500.0,0.00013999,2]
[394419406,1763554237992,-244.95492719,0.00013999,2]
[394419409,1763554238001,-3007.04341895,0.00014,2]
[394419411,1763554238011,-165.11096082,0.00014052,2]
[394419413,1763554238021,-3333.27452486,0.00014082,2]
[394419415,1763554238031,-254.12224042,0.00014151,2]
[394419417,1763554238040,-185.42548979,0.00014339,2]
[394419419,1763554238050,-186.09,0.00014386,2]
[394419421,1763554238060,-186.09,0.00014386,2]
[394419423,1763554238069,-186.09,0.00014386,2]
[394419425,1763554238078,-1200.0,0.00014436,2]
[394419426,1763554238089,-500.0,0.00014438,2]
[394419429,1763554238099,-165.11096082,0.00014439,2]
[394419431,1763554238109,-287.146,0.00014538,2]
[394419432,1763554238118,-500.0,0.00014538,2]
[394419434,1763554238128,-500.0,0.00014538,2]
[394419437,1763554238137,-151.0,0.00014538,2]
[394419439,1763554238147,-500.0,0.00014538,2]
[394419441,1763554238156,-155.39006501,0.00014538,2]
[394419443,1763554238166,-157.8498372,0.00014538,2]
[394419445,1763554238175,-151.0,0.00014538,2]
[394419447,1763554238185,-500.0,0.00014565,2]
[394419449,1763554238194,-500.0,0.00014565,2]
[394419450,1763554238204,-254.3822629,0.00014565,2]
[394419452,1763554238217,-500.0,0.00014565,2]
[394419454,1763554238227,-205.52159326,0.00014565,2]
[394419457,1763554238237,-500.0,0.00014593,2]
[394419459,1763554238247,-500.0,0.00014593,2]
[394419474,1763554238397,-254.08719922,0.00014593,2]
[394419477,1763554238415,-151.0,0.000146,2]
[394419479,1763554238426,-151.0,0.000146,2]
[394419481,1763554238434,-500.0,0.0001462,2]
[394419483,1763554238444,-500.0,0.0001462,2]
[394419485,1763554238453,-500.0,0.00014648,2]
[394419487,1763554238463,-500.0,0.00014648,2]
[394419489,1763554238472,-1302.66,0.00014661,2]
[394419491,1763554238481,-500.0,0.00014675,2]
[394419493,1763554238491,-500.0,0.00014675,2]
[394419495,1763554238505,-151.0,0.000147,2]
[394419496,1763554238515,-151.0,0.000147,2]
[394419498,1763554238525,-151.0,0.000147,2]
[394419500,1763554238535,-151.0,0.000147,2]
[394419503,1763554238545,-441.68803233,0.00014702,2]
[394419505,1763554238555,-500.0,0.00014706,2]
[394419507,1763554238565,-500.0,0.00014706,2]
[394419509,1763554238575,-524.15073761,0.00014706,2]
[394419511,1763554238585,-495.42104687,0.00014706,2]
[394419513,1763554238595,-500.0,0.00014706,2]
[394419515,1763554238604,-532.66965828,0.00014706,2]
[394419517,1763554238613,-500.0,0.00014706,2]
[394419519,1763554238623,-1957.0,0.00014706,2]
[394419520,1763554238632,-500.0,0.00014706,2]
[394419522,1763554238641,-1000.0,0.00014706,2]
[394419524,1763554238650,-1000.0,0.00014706,2]
[394419526,1763554238659,-1000.0,0.00014706,2]
[394419528,1763554238669,-1000.0,0.00014706,2]
[394419530,1763554238678,-1000.0,0.00014706,2]
[394419532,1763554238687,-1000.0,0.00014706,2]
[394419534,1763554238696,-1000.0,0.00014706,2]
[394419536,1763554238705,-530.23893886,0.00014706,2]
[394419538,1763554238714,-1008.43444966,0.00014707,2]
[394419541,1763554238724,-500.0,0.00014712,2]
[394419542,1763554238733,-500.0,0.00014733,2]
[394419544,1763554238742,-1957.0,0.00014733,2]
[394419546,1763554238751,-500.0,0.00014733,2]
[394419549,1763554238760,-206.57223267,0.00014749,2]
[394419550,1763554238770,-500.0,0.00014761,2]
[394419553,1763554238780,-1957.0,0.00014761,2]
[394419554,1763554238789,-500.0,0.00014761,2]
[394419557,1763554238799,-500.0,0.00014788,2]
[394419559,1763554238811,-1957.0,0.00014788,2]
[394419561,1763554238821,-500.0,0.00014788,2]
[394419563,1763554238831,-151.0,0.000148,2]
[394419565,1763554238843,-151.0,0.000148,2]
[394419567,1763554238853,-151.0,0.000148,2]
[394419569,1763554238863,-151.0,0.000148,2]
[394419571,1763554238874,-151.0,0.000148,2]
[394419573,1763554238884,-151.0,0.000148,2]
[394419575,1763554238894,-500.0,0.00014816,2]
[394419577,1763554238903,-1957.0,0.00014816,2]
[394419579,1763554238915,-500.0,0.00014816,2]
[394419581,1763554238924,-638.0,0.00014843,2]
[394419583,1763554238935,-1957.0,0.00014843,2]
[394419585,1763554238944,-1957.0,0.0001487,2]
[394419587,1763554238954,-1957.0,0.00014898,2]
[394419589,1763554238963,-151.0,0.000149,2]
[394419591,1763554238973,-151.0,0.000149,2]
[394419593,1763554238982,-151.0,0.000149,2]
[394419595,1763554238992,-151.0,0.000149,2]
[394419597,1763554239002,-151.0,0.000149,2]
[394419599,1763554239011,-151.0,0.000149,2]
[394419601,1763554239020,-151.0,0.000149,2]
[394419603,1763554239029,-1957.0,0.00014925,2]
[394419605,1763554239039,-406.61442334,0.00014947,2]
[394419607,1763554239049,-1957.0,0.00014953,2]
[394419609,1763554239059,-1957.0,0.0001498,2]
[394419611,1763554239068,-500.0,0.00014986,2]
[394419613,1763554239078,-151.0,0.00015,2]
[394419615,1763554239090,-151.0,0.00015,2]
[394419617,1763554239099,-220.0,0.00015,2]
[394419619,1763554239108,-151.0,0.00015,2]
[394419621,1763554239117,-151.0,0.00015,2]
[394419623,1763554239127,-151.0,0.00015,2]
[394419625,1763554239138,-151.0,0.00015,2]
[394419627,1763554239147,-1957.0,0.00015007,2]
[394419629,1763554239156,-1961.78853232,0.0001501,2]
[394419631,1763554239166,-1957.0,0.00015035,2]
[394419633,1763554239175,-1957.0,0.00015062,2]
[394419635,1763554239184,-2891.50583401,0.00015065,2]
[394419637,1763554239194,-500.0,0.00015073,2]
[394419639,1763554239203,-382.90001677,0.00015073,2]
[394419641,1763554239212,-500.0,0.00015073,2]
[394419643,1763554239221,-500.0,0.00015073,2]
[394419644,1763554239231,-500.0,0.00015073,2]
[394419646,1763554239243,-503.65604025,0.00015073,2]
[394419648,1763554239253,-170.75559957,0.00015073,2]
[394419650,1763554239262,-158.55699744,0.00015073,2]
[394419652,1763554239272,-500.0,0.00015073,2]
[394419654,1763554239282,-534.44770672,0.00015073,2]
[394419656,1763554239291,-255.24471556,0.00015073,2]
[394419658,1763554239301,-500.0,0.00015073,2]
[394419660,1763554239312,-231.35448524,0.00015073,2]
[394419662,1763554239322,-505.49963257,0.00015073,2]
[394419664,1763554239331,-500.0,0.00015073,2]
[394419666,1763554239343,-500.0,0.00015073,2]
[394419668,1763554239352,-500.0,0.00015073,2]
[394419670,1763554239362,-500.0,0.00015073,2]
[394419672,1763554239372,-500.0,0.00015073,2]
[394419674,1763554239381,-500.0,0.00015073,2]
[394419676,1763554239391,-500.0,0.00015073,2]
[394419678,1763554239401,-500.0,0.00015073,2]
[394419680,1763554239419,-500.0,0.00015073,2]
[394419682,1763554239428,-500.0,0.00015073,2]
[394419684,1763554239438,-500.0,0.00015073,2]
[394419686,1763554239447,-500.0,0.00015073,2]
[394419689,1763554239457,-500.0,0.00015073,2]
[394419690,1763554239466,-501.34505857,0.00015073,2]
[394419693,1763554239476,-506.10151376,0.00015073,2]
[394419695,1763554239485,-263.70606165,0.00015073,2]
[394419697,1763554239494,-500.0,0.00015073,2]
[394419698,1763554239504,-500.0,0.00015073,2]
[394419701,1763554239514,-500.0,0.00015073,2]
[394419703,1763554239524,-1957.0,0.0001509,2]
[394419704,1763554239534,-200.0,0.00015097,2]
[394419707,1763554239543,-307.89170148,0.00015097,2]
[394419710,1763554239552,-787707.69053498,0.00015098,2]
[394419794,1763554241208,-3e-08,0.00015098,2]
[394419801,1763554244877,-2760.3876372,0.00015098,2]
[394419806,1763554246151,-563.791214,0.00015098,2]
[394419809,1763554441008,-500.0,0.00013401,2]
[394419810,1763554441030,-365.60154542,0.00013401,2]
[394419811,1763554442528,-134.39845458,0.00013401,2]
[394419812,1763554442547,-356.4883889,0.00013401,2]
[394419813,1763554444021,-175.7228579,0.00013401,2]
[394419814,1763554444042,-39.31729196,0.00013401,2]
[394419815,1763554456005,-171.67088161,0.00013267,2]
[394419816,1763554456026,-76.60286376,0.00013401,2]
[394419817,1763554514056,476.41663873,0.00015556,7]
[394419818,1763554577663,-216.22520794,0.00013267,2]
[394419819,1763554579234,-160.51832996,0.00013267,2]
[394419820,1763554582306,-154.84721429,0.00013267,2]
[394419821,1763554584994,-216.35726433,0.00013134,2]
[394419822,1763554587101,-189.01827648,0.00013134,2]
[394419823,1763554587123,-57.40807903,0.00013267,2]
[394419824,1763554590204,-354.67857351,0.00013267,2]
[394419825,1763554593314,-450.0,0.00013267,2]
[394419826,1763554595328,-172.12249522,0.00013267,2]
[394419827,1763554596729,-164.20759794,0.00013267,2]
[394419828,1763554598810,-300.0,0.00013267,2]
[394419829,1763554600999,-194.47980349,0.00013267,2]
[394419830,1763554603817,-213.59475807,0.00013267,2]
[394419831,1763554605763,-368.04522985,0.00013267,2]
[394419832,1763554607230,-500.0,0.00013267,2]
[394419833,1763554608721,-1048.25041885,0.00013267,2]
[394419834,1763554610136,-550.545713,0.00013267,2]
[394419835,1763554612150,-241.33147702,0.00013267,2]
[394419836,1763554614886,-374.57663598,0.00013267,2]
[394419837,1763554617521,-300.0,0.00013267,2]
[394419838,1763554618973,-259.47912152,0.00013267,2]
[394419839,1763554621900,-184.04,0.00013267,2]
[394419840,1763554624314,-335.04494031,0.00013267,2]
[394419841,1763554627295,-381.9042425,0.00013267,2]
[394419842,1763554629379,-264.95505969,0.00013267,2]
[394419843,1763554632439,-354.02312836,0.00013267,2]
[394419844,1763554634785,2267.57778484,0.00015745,7]
[394419845,1763554638439,-347.11585858,0.00013267,2]
[394419846,1763554640434,201.93528617,0.00015556,7]
[394419847,1763554644682,-242.73639536,0.00013267,2]
[394419848,1763554648173,-227.98607944,0.00013267,2]
[394419849,1763554655001,-380.60321431,0.00013267,2]
[394419850,1763554662740,-211.2603167,0.00013267,2]
[394419851,1763554669504,-328.271702,0.00013267,2]
[394419852,1763554672621,-156.24735338,0.00013267,2]
[394419853,1763554676933,-581.19573489,0.00013267,2]
[394419854,1763554685223,-266.2119629,0.00013134,2]
[394419855,1763554687867,-190.95036269,0.00013134,2]
[394419856,1763554692841,-160.66789128,0.00013134,2]
[394419857,1763554694270,-219.89751985,0.00013134,2]
[394419858,1763554696347,-103.71989747,0.00013134,2]
[394419859,1763554696368,-137.15566621,0.00013267,2]
[394419860,1763554699853,203.6876821,0.000124,2]
[394419861,1763554701001,-159.37719826,0.00013267,2]
[394419862,1763554702497,-183.716,0.00013267,2]
[394419863,1763554709171,-343.43803894,0.00013134,2]
[394419864,1763554711693,-392.16085235,0.00013134,2]
[394419865,1763554717987,-675.70464607,0.00013134,2]
[394419866,1763554725912,-195.82558813,0.00013134,2]
[394419867,1763554725934,-24.28441187,0.00013267,2]
[394419868,1763554727921,-321.98019007,0.00013267,2]
[394419869,1763554733254,-193.45137736,0.00013003,2]
[394419870,1763554736266,-2.37421077,0.00013003,2]
[394419871,1763554736287,-297.62578923,0.00013267,2]
[394419872,1763554740949,-320.45531104,0.00013267,2]
[394419873,1763554743544,-377.99317766,0.00013267,2]
[394419874,1763554801048,-171.86032008,0.00013069,2]
[394419875,1763554801071,-2.37074362,0.00013201,2]
[394419876,1763554803100,-167.39594231,0.00013201,2]
[394419878,1763554810179,607.49530164,0.00015783,7]
[394419879,1763554876018,-580.1885933,0.00013101,2]